bitfinex/quotes_ETHUSD_20250806
["timestamp","ask_amount","ask_price","bid_price","bid_amount"]
[1754517819427,0.136,3674.3,3674.1,2.72169879]
[1754517819639,0.136,3674.3,3674.2,2.72168091]
[1754517819850,4.21,3674.5,3674.2,0.9335]
[1754517820152,4.346,3674.5,3674.3,0.9335]
[1754517820359,4.346,3674.5,3674.4,0.9335]
[1754517821816,4.346,3674.5,3674.4,0.4932]
[1754517822016,5.32486701,3674.5,3673.9,2.72185633]
[1754517822218,0.136,3674.4,3674.1,2.72173437]
[1754517822620,0.136,3674.4,3674.2,0.9335]
[1754517822823,2.72165553,3674.3,3673.9,0.136]
[1754517823150,4.344,3674.2,3674.0,0.4932]
[1754517823941,7.0657178,3674.2,3674.0,0.4932]
[1754517824345,5.3227265,3674.2,3673.6,1.0695]
[1754517824547,5.3227265,3674.2,3673.6,0.4403]
[1754517824548,5.1867265,3674.2,3673.6,0.4403]
[1754517824744,0.136,3673.9,3673.8,2.72197724]
[1754517825056,4.207,3673.9,3673.8,3.65547724]
[1754517825366,4.208,3674.3,3673.9,2.72189959]
[1754517825657,4.208,3674.3,3674.0,3.65532906]
[1754517825852,4.208,3674.3,3673.9,2.72189959]
[1754517825853,4.208,3674.3,3674.2,2.72168091]
[1754517826041,4.208,3674.3,3674.2,3.21488091]
[1754517826221,4.208,3674.3,3674.2,3.65518091]
[1754517826427,4.208,3674.3,3674.2,0.9335]
[1754517826870,4.208,3674.3,3674.2,3.65518091]
[1754517827024,1.66240242,3675.0,3674.6,2.72138464]
[1754517827225,4.344,3674.9,3674.6,2.72138464]
[1754517827425,4.344,3674.9,3674.7,0.9335]
[1754517828039,4.344,3674.9,3674.8,0.4932]
[1754517828633,4.344,3674.9,3674.5,2.72142925]
[1754517828634,4.344,3674.9,3674.5,0.4932]
[1754517828838,5.52865003,3674.9,3674.2,0.4932]
[1754517829038,0.136,3674.5,3674.3,2.72154526]
[1754517829260,4.207,3674.4,3674.3,2.72154526]
[1754517829465,4.207,3674.4,3674.3,3.65504526]
[1754517831978,4.208,3674.7,3674.3,3.65504526]
[1754517832180,4.208,3674.7,3673.3,2.72228299]
[1754517832181,7.8021259,3674.7,3674.0,2.72176876]
[1754517832382,0.136,3674.5,3674.0,2.85776876]
[1754517832699,0.136,3674.5,3674.1,0.9335]
[1754517832841,4.344,3674.7,3674.3,2.72157905]
[1754517833058,4.344,3674.7,3674.4,0.9335]
[1754517833259,4.344,3674.7,3674.4,0.4932]
[1754517833456,7.93809188,3674.7,3674.1,0.4932]
[1754517833700,5.08075097,3674.7,3674.0,0.4932]
[1754517834002,0.136,3674.4,3674.0,3.2149756]
[1754517834198,0.136,3674.4,3674.1,0.4932]
[1754517834503,0.136,3674.4,3674.2,0.4932]
[1754517835804,0.136,3674.4,3674.3,0.4932]
[1754517836163,0.136,3674.4,3674.3,3.65510683]
[1754517836596,4.208,3674.7,3674.4,2.72151894]
[1754517836814,4.208,3674.7,3674.5,2.72143444]
[1754517837108,4.208,3674.7,3674.6,0.4932]
[1754517837508,4.208,3674.7,3674.3,0.6292]
[1754517837705,4.208,3674.7,3674.3,3.35079074]
[1754517837913,4.208,3674.7,3674.3,0.6292]
[1754517838092,4.208,3674.7,3674.3,3.35080454]
[1754517838300,4.208,3674.7,3674.3,2.85760454]
[1754517838486,4.208,3674.7,3674.4,0.4932]
[1754517838888,5.5286593,3674.7,3674.1,2.72173416]
[1754517839080,0.136,3674.6,3674.1,2.85773416]
[1754517839299,0.136,3674.6,3674.2,3.21486288]
[1754517839812,0.136,3674.6,3674.3,0.4932]
[1754517839976,0.92979962,3674.6,3674.3,0.4932]
[1754517840180,1.37769962,3674.6,3674.1,0.136]
[1754517840507,0.136,3674.4,3674.3,2.72160683]
[1754517840731,0.136,3674.4,3674.3,3.21480683]
[1754517841303,4.205,3674.8,3674.4,2.72153276]
[1754517841536,0.136,3674.7,3674.5,0.4606]
[1754517841709,0.136,3674.7,3674.6,0.9267]
[1754517841913,4.205,3674.8,3674.6,0.9267]
[1754517842114,4.205,3674.8,3674.7,0.4606]
[1754517842626,4.205,3674.8,3674.7,3.18191058]
[1754517842823,1.66240242,3675.0,3674.9,2.72116248]
[1754517843025,4.205,3675.0,3674.9,3.64786248]
[1754517843199,4.205,3675.0,3674.9,0.9267]
[1754517843521,4.205,3675.0,3674.6,2.7213782]
[1754517843835,4.205,3675.0,3674.9,0.4606]
[1754517844024,4.205,3675.0,3674.9,3.18176248]
[1754517844940,0.001,3675.2,3675.0,2.72108843]
[1754517845235,0.001,3675.2,3674.9,0.136]
[1754517845434,1.17277324,3675.2,3674.6,0.4606]
[1754517845600,0.136,3675.0,3674.7,2.72131058]
[1754517846032,0.136,3675.0,3674.8,0.4606]
[1754517846546,0.136,3675.0,3674.5,0.136]
[1754517846855,0.70727324,3675.2,3674.6,3.64808221]
[1754517847139,4.202,3675.0,3674.6,3.31795793]
[1754517847433,4.202,3675.0,3674.8,2.72121908]
[1754517847642,4.202,3675.0,3674.6,0.5966]
[1754517847840,4.202,3675.0,3674.7,2.72130029]
[1754517848005,4.202,3675.0,3674.6,3.31796186]
[1754517848508,4.202,3675.0,3674.6,0.136]
[1754517848705,4.202,3675.0,3674.6,3.3179644]
[1754517848969,4.202,3675.0,3674.6,3.1819644]
[1754517849241,4.202,3675.0,3674.8,2.72119306]
[1754517849242,4.338,3675.0,3674.8,2.72119306]
[1754517849457,4.338,3675.0,3674.9,0.4606]
[1754517849803,0.136,3675.0,3674.9,3.18176248]
[1754517850008,4.202,3675.1,3675.0,2.72108843]
[1754517850235,4.202,3675.1,3675.0,3.64778843]
[1754517851649,0.001,3675.2,3674.8,0.136]
[1754517851806,0.136,3675.0,3674.8,3.18182586]
[1754517852025,0.001,3675.2,3674.9,3.18176248]
[1754517852224,0.001,3675.2,3675.0,0.4606]
[1754517852225,0.137,3675.2,3675.0,0.4606]
[1754517852473,0.001,3675.2,3675.1,0.4606]
[1754517853721,0.001,3675.2,3674.8,0.136]
[1754517854070,0.4655,3675.1,3674.7,2.85726016]
[1754517854290,0.137,3675.2,3674.7,0.136]
[1754517854573,0.137,3675.2,3674.8,0.4606]
[1754517854755,0.137,3675.2,3674.9,3.18176248]
[1754517855927,0.137,3675.2,3674.7,2.8572777]
[1754517856122,0.6025,3675.2,3674.7,3.3178777]
[1754517856576,0.137,3675.2,3674.7,2.8572777]
[1754517856730,0.4655,3675.1,3674.7,2.8572777]
[1754517856940,0.137,3675.2,3674.7,2.8572777]
[1754517857260,0.137,3675.2,3674.8,2.72122522]
[1754517857948,0.137,3675.2,3674.8,3.18182522]
[1754517858169,0.137,3675.2,3674.9,2.72114466]
[1754517858332,0.137,3675.2,3674.8,0.4606]
[1754517858530,0.137,3675.2,3674.9,2.72110701]
[1754517858835,0.137,3675.2,3674.9,0.4606]
[1754517859035,0.137,3675.2,3674.8,2.72122978]
[1754517859251,0.137,3675.2,3674.9,0.4606]
[1754517860232,0.6025,3675.2,3674.7,2.85728154]
[1754517860432,0.137,3675.2,3674.8,3.18182524]
[1754517860734,0.137,3675.2,3674.9,0.4606]
[1754517860938,0.137,3675.2,3675.0,0.4606]
[1754517861136,0.137,3675.2,3674.8,0.4606]
[1754517861965,0.137,3675.2,3674.8,2.72122709]
[1754517862136,0.137,3675.2,3674.9,0.4606]
[1754517862967,0.137,3675.2,3674.7,0.136]
[1754517862968,2.85798112,3675.2,3674.7,0.136]
[1754517863303,0.49270216,3675.1,3674.7,0.136]
[1754517863502,2.8572421,3674.8,3674.3,0.4606]
[1754517863701,0.136,3674.8,3674.3,2.72160219]
[1754517864002,2.85727538,3674.8,3674.4,0.4606]
[1754517864204,0.136,3674.8,3674.4,3.18211165]
[1754517864598,0.136,3674.8,3674.5,0.4606]
[1754517865094,2.85725713,3674.8,3674.5,0.4606]
[1754517865291,0.136,3674.8,3674.2,0.136]
[1754517865494,0.136,3674.8,3674.6,0.4606]
[1754517865710,0.136,3674.8,3674.7,0.4606]
[1754517866630,0.001,3675.2,3675.1,2.72101439]
[1754517866784,0.001,3675.2,3675.1,3.64771439]
[1754517867606,0.001,3675.2,3675.0,2.72108748]
[1754517867799,0.001,3675.2,3675.0,3.18168748]
[1754517868217,0.001,3675.2,3674.8,2.72123652]
[1754517868405,0.136,3675.1,3674.8,3.18183652]
[1754517868588,0.136,3675.1,3675.0,2.72108843]
[1754517868796,0.001,3675.2,3675.0,2.72108843]
[1754517869326,0.001,3675.2,3675.0,3.18168843]
[1754517869514,0.001,3675.2,3675.1,0.4606]
[1754517871193,0.001,3675.2,3675.1,3.62111439]
[1754517871594,0.001,3675.2,3675.1,3.65361439]
[1754517872440,0.001,3675.2,3675.1,4.30469087]
[1754517873289,0.001,3675.2,3675.1,0.9326]
[1754517873495,0.001,3675.2,3675.1,3.65361439]
[1754517874495,0.001,3675.2,3675.1,7.97861439]
[1754517876432,0.001,3675.2,3675.1,7.53911439]
[1754517876635,0.001,3675.2,3675.1,7.97861439]
[1754517877732,0.001,3675.2,3675.1,3.35011439]
[1754517877930,0.001,3675.2,3675.1,3.21411439]
[1754517878136,0.001,3675.2,3675.1,3.65361439]
[1754517878303,0.001,3675.2,3675.1,3.78961439]
[1754517879014,0.001,3675.2,3675.1,5.15880569]
[1754517880241,0.001,3675.2,3675.1,5.13159555]
[1754517880538,0.001,3675.2,3675.1,9.32059555]
[1754517882851,0.001,3675.2,3675.1,9.31859555]
[1754517883853,0.001,3675.2,3675.1,12.86859555]
[1754517884056,1e-08,3675.4,3675.3,6.27086632]
[1754517884258,1e-08,3675.4,3675.3,12.1868432]
[1754517884445,1e-08,3675.4,3675.3,13.1194432]
[1754517884755,1e-08,3675.6,3675.5,3.27071826]
[1754517885053,1e-08,3675.7,3675.6,6.27064424]
[1754517885238,1e-08,3675.7,3675.6,8.5452254]
[1754517885621,1e-08,3675.7,3675.6,7.9952254]
[1754517885826,1e-08,3675.7,3675.6,12.1812254]
[1754517886027,1e-08,3675.7,3675.6,9.1812254]
[1754517886834,1e-08,3675.7,3675.6,6.90764424]
[1754517887347,1e-08,3675.7,3675.6,7.84024424]
[1754517887760,1e-08,3675.7,3675.6,7.97624424]
[1754517889270,1e-08,3675.7,3675.6,11.52624424]
[1754517890827,1e-08,3675.7,3675.6,6.78924424]
[1754517891028,1e-08,3675.7,3675.6,11.92724049]
[1754517892463,1e-08,3675.7,3675.6,12.47724049]
[1754517893068,1e-08,3675.7,3675.6,7.85074049]
[1754517893277,1e-08,3675.7,3675.6,12.47524049]
[1754517899494,0.108995,3676.9,3676.7,2.71983028]
[1754517899663,0.4616,3677.5,3676.7,9.89983028]
[1754517899868,0.4616,3677.5,3676.7,10.52893028]
[1754517900185,0.4616,3677.3,3676.7,10.03583028]
[1754517900676,0.7111,3676.8,3676.7,7.04383028]
[1754517901114,0.2495,3676.8,3676.7,9.2631566]
[1754517901988,0.2495,3676.8,3676.7,4.1518566]
[1754517902192,0.2495,3676.8,3676.7,7.04383028]
[1754517902930,0.7138,3676.8,3676.7,4.191]
[1754517903118,1.0385,3676.8,3676.7,4.191]
[1754517903318,1.0385,3676.8,3676.7,4.192]
[1754517904436,1.0385,3676.8,3676.6,4.192]
[1754517904641,0.789,3676.7,3676.6,6.91186436]
[1754517904849,0.789,3676.7,3676.6,4.192]
[1754517905606,0.789,3676.7,3675.9,3.0]
[1754517905607,0.789,3676.7,3676.2,2.72013483]
[1754517905812,0.925,3676.6,3676.4,2.72000614]
[1754517906159,0.4643,3676.6,3676.5,2.71997824]
[1754517908159,0.2495,3676.8,3676.7,2.71983028]
[1754517908312,0.2495,3676.8,3676.7,6.90983028]
[1754517908821,0.2495,3676.8,3676.7,8.39706483]
[1754517910019,0.2495,3676.8,3676.7,2.71983028]
[1754517910220,0.2495,3676.8,3676.7,6.91083028]
[1754517910422,0.2495,3676.8,3676.7,7.38743028]
[1754517911658,0.4643,3677.5,3676.7,4.6676]
[1754517911833,0.4643,3677.5,3677.2,2.71944495]
[1754517912325,0.001,3677.6,3677.2,0.4766]
[1754517912541,0.4653,3677.6,3677.2,3.19606045]
[1754517912851,0.4653,3677.6,3677.3,2.71936476]
[1754517913019,0.4643,3677.5,3677.3,6.91036476]
[1754517913354,0.001,3677.6,3677.4,2.71924321]
[1754517913545,0.001,3677.6,3677.5,2.71923861]
[1754517913984,0.4653,3677.6,3677.4,4.189]
[1754517914117,0.4643,3677.5,3677.4,4.189]
[1754517914649,0.4643,3677.5,3677.4,6.90831255]
[1754517914857,0.001,3677.6,3677.4,4.189]
[1754517915060,0.001,3677.6,3677.5,2.71923861]
[1754517915468,0.001,3677.6,3677.4,6.90829163]
[1754517915635,0.4653,3677.6,3677.4,4.189]
[1754517916018,0.4653,3677.6,3677.5,2.71923861]
[1754517916330,0.001,3677.6,3677.5,2.71923861]
[1754517917431,0.001,3677.6,3677.4,6.90828697]
[1754517917615,0.4653,3677.6,3677.4,4.189]
[1754517917814,0.4653,3677.6,3677.4,6.90831056]
[1754517918049,0.789,3677.5,3676.6,0.4766]
[1754517918351,0.789,3677.5,3677.1,2.85551327]
[1754517918649,0.4643,3677.4,3677.2,4.186]
[1754517918863,0.4643,3677.4,3677.2,6.90544881]
[1754517919047,0.4643,3677.4,3677.3,2.7193865]
[1754517919252,0.137,3677.6,3677.4,2.71930746]
[1754517919429,0.137,3677.6,3677.5,2.71923861]
[1754517919659,0.001,3677.6,3677.5,2.71923861]
[1754517919867,0.001,3677.6,3677.4,4.187]
[1754517920171,0.4643,3677.5,3677.4,4.187]
[1754517920484,0.4643,3677.5,3677.3,0.136]
[1754517920650,0.001,3677.6,3677.3,4.322]
[1754517920845,0.4643,3677.4,3677.3,4.322]
[1754517921972,0.4643,3677.4,3677.3,7.0413865]
[1754517922168,0.001,3677.6,3677.3,7.0413865]
[1754517922370,0.4643,3677.5,3677.3,0.136]
[1754517922562,0.4643,3677.4,3677.3,0.136]
[1754517923268,0.4643,3677.4,3677.2,6.904411]
[1754517923695,0.137,3677.6,3677.2,4.185]
[1754517923895,0.4643,3677.3,3677.1,0.136]
[1754517924095,0.4643,3677.3,3677.1,2.85552812]
[1754517924867,0.137,3677.6,3677.1,2.85552812]
[1754517925087,0.6013,3677.6,3677.2,2.71945498]
[1754517925453,0.6013,3677.6,3677.1,3.33211742]
[1754517925652,0.4643,3677.5,3677.1,0.136]
[1754517926049,0.50161039,3677.6,3677.1,0.136]
[1754517926294,2.85531315,3677.4,3677.0,4.182]
[1754517926512,0.789,3677.3,3676.8,4.182]
[1754517926667,0.789,3677.3,3676.8,6.90170811]
[1754517926668,0.136,3677.1,3676.8,6.90170811]
[1754517926864,0.136,3677.1,3676.9,2.71966421]
[1754517927752,0.001,3677.6,3677.0,0.4766]
[1754517928103,0.136,3677.5,3677.1,2.71949575]
[1754517928250,0.136,3677.5,3677.0,7.34830707]
[1754517928453,0.136,3677.5,3677.2,0.4766]
[1754517929364,0.136,3677.5,3677.3,0.4766]
[1754517929777,0.136,3677.5,3677.4,0.4766]
[1754517930288,0.001,3677.6,3677.5,2.71923861]
[1754517930591,0.001,3677.6,3677.5,4.69702933]
[1754517930948,0.001,3677.6,3677.5,8.87802933]
[1754517934392,0.001,3677.6,3677.5,7.84313861]
[1754517938299,0.001,3677.6,3677.5,8.39313861]
[1754517938795,0.001,3677.6,3677.5,11.39313861]
[1754517938995,1e-08,3677.6,3677.5,11.39313861]
[1754517940198,1e-08,3677.6,3677.5,11.38713861]
[1754517940559,1e-08,3677.6,3677.5,12.81138933]
[1754517941394,1e-08,3677.6,3677.5,20.81001236]
[1754517949020,0.001,3677.7,3677.6,6.26916467]
[1754517949021,1e-08,3677.7,3677.6,6.26916467]
[1754517949172,1e-08,3678.2,3678.1,6.26879503]
[1754517949377,1e-08,3678.2,3678.1,18.43541806]
[1754517949609,1e-08,3678.2,3678.1,19.94712538]
[1754517949906,0.001,3678.8,3678.5,2.71843478]
[1754517950105,0.001,3678.8,3678.7,2.71835159]
[1754517950286,0.001,3678.8,3678.7,2.85435159]
[1754517950484,0.001,3678.8,3678.7,3.31125159]
[1754517950713,0.001,3678.8,3678.7,4.37765023]
[1754517951479,0.001,3678.8,3678.7,4.40483374]
[1754517951795,0.001,3678.8,3678.7,4.87113374]
[1754517953123,0.001,3678.8,3678.7,4.37765023]
[1754517953884,0.001,3678.8,3678.7,8.08675023]
[1754517954616,0.001,3678.8,3678.7,8.54365023]
[1754517955027,0.001,3678.8,3678.7,8.08675023]
[1754517955182,0.45,3678.8,3678.7,8.08675023]
[1754517955827,0.001,3678.8,3678.7,8.54365023]
[1754517956319,0.7747,3678.8,3678.7,6.88235159]
[1754517956611,0.7747,3678.8,3678.7,4.164]
[1754517957495,0.7747,3678.8,3678.5,2.7184785]
[1754517957700,0.001,3678.8,3678.6,4.164]
[1754517957996,0.7737,3678.7,3678.5,2.7184785]
[1754517958201,0.7737,3678.6,3677.9,2.71894287]
[1754517958404,0.001,3678.8,3678.7,2.71835159]
[1754517958648,0.3257,3678.8,3678.6,6.88237216]
[1754517958813,0.001,3678.8,3678.7,2.71835159]
[1754517959015,0.001,3678.8,3678.6,6.8824086]
[1754517959213,0.449,3678.7,3678.6,6.8824086]
[1754517959439,0.7737,3678.7,3678.6,6.8824086]
[1754517960236,0.449,3678.7,3678.6,6.8824086]
[1754517960438,0.001,3678.8,3678.7,2.71835159]
[1754517960740,0.001,3678.8,3678.7,6.88235159]
[1754517962112,0.001,3678.8,3678.7,7.33675159]
[1754517962341,0.001,3678.8,3678.7,6.88235159]
[1754517962638,0.767,3678.8,3678.7,6.88235159]
[1754517963008,0.767,3678.8,3678.7,6.88135159]
[1754517964031,0.4423,3678.8,3678.7,6.88135159]
[1754517964710,0.001,3678.8,3678.7,6.88135159]
[1754517965109,0.4423,3678.8,3678.7,2.71835159]
[1754517965364,0.767,3678.8,3678.7,2.71835159]
[1754517966646,0.4423,3678.8,3678.7,2.71835159]
[1754517969848,0.001,3678.8,3678.7,2.71835159]
[1754517970149,0.001,3678.8,3678.7,3.60265159]
[1754517970374,0.001,3678.8,3678.7,3.73865159]
[1754517970542,0.001,3678.8,3678.7,3.30875159]
[1754517971445,0.001,3678.8,3678.7,3.73865159]
[1754517972016,0.001,3678.8,3678.7,3.30875159]
[1754517972611,0.001,3678.8,3678.7,4.82774837]
[1754517973822,1e-08,3679.0,3678.9,2.71820381]
[1754517974021,1e-08,3679.0,3678.9,15.04200887]
[1754517974225,1e-08,3679.0,3678.9,15.89912684]
[1754517974640,1e-08,3679.6,3679.5,2.71776056]
[1754517974824,1e-08,3679.6,3679.5,17.90556119]
[1754517975026,1e-08,3679.6,3679.5,18.89868359]
[1754517977540,0.136,3681.6,3679.6,6.2676867]
[1754517977854,0.766,3681.7,3681.3,2.71642739]
[1754517978021,0.136,3681.4,3681.3,2.71642739]
[1754517978216,0.902,3681.4,3680.9,2.71672688]
[1754517978424,0.766,3681.3,3680.9,2.71672688]
[1754517978633,0.4413,3681.2,3680.9,2.71672688]
[1754517978850,0.4413,3681.1,3680.9,2.71672688]
[1754517979043,0.4413,3681.1,3681.0,4.162]
[1754517979576,0.4413,3681.1,3680.8,0.136]
[1754517979777,0.766,3681.0,3680.7,4.162]
[1754517979980,0.766,3680.9,3680.7,6.87887416]
[1754517980274,0.4413,3680.9,3680.7,6.87887416]
[1754517980635,0.136,3681.0,3680.7,4.162]
[1754517980841,0.766,3680.9,3680.7,4.162]
[1754517981066,0.766,3680.8,3680.7,4.162]
[1754517981264,0.4413,3680.8,3680.7,4.162]
[1754517981459,0.4413,3680.8,3680.5,0.136]
[1754517981779,0.4413,3680.7,3680.4,6.87804418]
[1754517981951,0.136,3680.8,3680.4,6.87807565]
[1754517982144,0.4413,3680.7,3680.4,6.87807565]
[1754517983782,0.766,3680.6,3680.3,2.85313967]
[1754517984079,0.766,3680.5,3680.4,4.161]
[1754517984256,0.136,3680.8,3680.4,6.87809596]
[1754517984456,0.4413,3680.7,3680.4,6.87809596]
[1754517984658,0.4413,3680.7,3680.4,4.161]
[1754517985566,0.766,3680.6,3680.4,4.161]
[1754517985767,0.4413,3680.6,3680.3,0.136]
[1754517986081,0.4413,3680.6,3680.3,4.297]
[1754517986677,0.4413,3680.5,3680.3,4.297]
[1754517987280,0.4413,3680.5,3680.3,2.8531515]
[1754517987583,0.136,3680.8,3680.3,2.8531515]
[1754517987584,0.5773,3680.8,3680.4,2.71707749]
[1754517987787,0.5773,3680.8,3680.4,3.17147749]
[1754517988084,0.4413,3680.7,3680.3,4.297]
[1754517988384,0.4413,3680.6,3680.3,4.297]
[1754517988967,0.4413,3680.6,3680.3,7.01416588]
[1754517989172,0.49786571,3680.8,3680.4,2.71708828]
[1754517989345,0.49786571,3680.8,3680.4,0.4544]
[1754517989545,0.93916571,3680.8,3680.4,0.4544]
[1754517989771,2.71688158,3680.7,3680.3,4.297]
[1754517989971,0.4413,3680.6,3680.3,4.297]
[1754517990358,0.4413,3680.6,3680.1,3.17165139]
[1754517990359,3.15825484,3680.6,3680.0,6.87736543]
[1754517990674,0.4607,3680.5,3680.0,7.01336543]
[1754517990859,0.7649,3680.4,3680.0,0.136]
[1754517991065,2.71730458,3680.2,3680.0,0.136]
[1754517991265,3.13531746,3680.1,3679.6,4.16]
[1754517991483,0.418,3680.0,3679.6,4.296]
[1754517992161,0.418,3680.0,3679.6,4.7713]
[1754517992593,0.418,3680.0,3679.6,0.6113]
[1754517992763,0.7427,3679.9,3679.5,2.7177425]
[1754517992973,0.136,3679.8,3679.6,3.19292268]
[1754517993173,0.136,3679.8,3679.7,0.4753]
[1754517993901,0.136,3679.8,3679.5,2.71775573]
[1754517994105,0.136,3679.8,3679.4,2.71780573]
[1754517994251,0.136,3679.8,3679.5,0.4753]
[1754517994451,0.136,3679.8,3679.5,3.19305888]
[1754517994691,0.136,3679.8,3679.6,2.71767685]
[1754517994907,2.71744869,3680.0,3679.3,2.71783973]
[1754517995079,2.71744869,3680.0,3679.3,6.87783973]
[1754517995080,0.136,3679.6,3679.3,6.87783973]
[1754517995481,0.136,3679.6,3679.3,2.71783973]
[1754517995713,0.136,3679.6,3679.4,0.4753]
[1754517996032,0.3247,3680.3,3679.4,0.4753]
[1754517996033,7.99862303,3680.9,3679.4,0.4753]
[1754517996314,0.136,3680.1,3679.9,2.71740847]
[1754517996512,0.136,3680.1,3679.9,2.71741981]
[1754517996666,0.136,3680.1,3680.0,0.4753]
[1754517997008,0.136,3680.1,3680.0,3.1926913]
[1754517997512,7.63955258,3680.7,3680.1,2.7173005]
[1754517997806,0.136,3680.3,3680.0,3.19268326]
[1754517997968,0.136,3680.3,3680.1,0.4753]
[1754517998173,0.136,3680.3,3680.1,3.19259723]
[1754517998709,0.136,3680.3,3680.2,3.19254362]
[1754517999071,0.136,3680.6,3680.3,2.71716979]
[1754517999303,0.136,3680.7,3680.4,0.9424]
[1754517999503,0.136,3680.7,3680.5,3.19226826]
[1754518000270,0.136,3680.7,3680.6,3.19224832]
[1754518000674,0.137,3680.7,3680.6,0.4753]
[1754518002129,0.137,3680.7,3680.6,3.19224832]
[1754518002633,0.001,3680.7,3680.6,3.65934832]
[1754518006742,0.001,3680.7,3680.6,0.4753]
[1754518006966,0.001,3680.7,3680.5,0.136]
[1754518007382,0.001,3680.7,3680.5,2.85300854]
[1754518007871,0.001,3680.7,3680.5,3.32830854]
[1754518008547,0.001,3680.7,3680.5,2.85300854]
[1754518008749,0.001,3680.7,3680.5,0.136]
[1754518008960,0.001,3680.7,3680.6,2.71694832]
[1754518009166,0.001,3680.7,3680.6,3.65934832]
[1754518009346,0.001,3680.7,3680.6,3.18404832]
[1754518009669,0.001,3680.7,3680.6,3.65934832]
[1754518011476,0.001,3680.7,3680.6,3.19224832]
[1754518012186,0.001,3680.7,3680.6,3.65934832]
[1754518012676,0.001,3680.7,3680.6,3.19224832]
[1754518013475,0.001,3680.7,3680.6,3.65934832]
[1754518015547,0.001,3680.7,3680.6,7.81834832]
[1754518017370,0.001,3680.7,3680.6,8.88549212]
[1754518022599,0.001,3680.7,3680.6,4.72649212]
[1754518023164,0.001,3680.7,3680.6,8.41839212]
[1754518023364,0.001,3680.7,3680.6,7.94309212]
[1754518023998,0.001,3680.7,3680.6,8.43289212]
[1754518025993,0.001,3680.7,3680.6,8.88399212]
[1754518030533,0.001,3680.7,3680.6,9.01999212]
[1754518031932,0.001,3680.7,3680.6,9.27465828]
[1754518033809,0.001,3680.7,3680.6,4.66455828]
[1754518034014,0.001,3680.7,3680.6,8.82255828]
[1754518034199,0.001,3680.7,3680.6,9.27365828]
[1754518036828,0.001,3680.7,3680.6,9.01899212]
[1754518038029,0.001,3680.7,3680.6,9.01799212]
[1754518041031,0.001,3680.7,3680.6,9.56799212]
[1754518041533,0.001,3681.1,3681.0,6.26665308]
[1754518041830,0.001,3681.3,3681.2,2.71650548]
[1754518042033,0.001,3681.3,3681.2,9.90067053]
[1754518042335,0.001,3681.3,3681.2,10.95040548]
[1754518043814,0.001,3681.3,3681.2,11.50040548]
[1754518044915,1e-08,3681.3,3681.2,11.50040548]
[1754518045229,1e-08,3681.3,3681.2,12.47088079]
[1754518050618,1e-08,3681.3,3681.2,7.86278079]
[1754518050823,1e-08,3681.3,3681.2,12.01878079]
[1754518051227,1e-08,3681.3,3681.2,10.97898079]
[1754518051746,1e-08,3681.3,3681.2,11.46528079]
[1754518052849,1e-08,3681.3,3681.2,10.97898079]
[1754518054023,1e-08,3681.3,3681.2,11.46528079]
[1754518054222,1e-08,3681.3,3681.2,11.46428079]
[1754518054423,1e-08,3681.3,3681.2,8.32538079]
[1754518054626,1e-08,3681.3,3681.2,12.48038079]
[1754518055414,1e-08,3681.3,3681.2,12.01428079]
[1754518056319,1e-08,3681.3,3681.2,10.97798079]
[1754518056851,1e-08,3681.3,3681.2,11.93038079]
[1754518058117,1e-08,3681.3,3681.2,11.46428079]
[1754518058819,1e-08,3681.3,3681.2,11.93038079]
[1754518059248,1e-08,3681.3,3681.2,6.82298079]
[1754518059450,1e-08,3681.3,3681.2,10.97798079]
[1754518060150,1e-08,3681.3,3681.2,11.93038079]
[1754518060755,1e-08,3681.3,3681.2,12.48038079]
[1754518060940,1e-08,3681.3,3681.2,12.01428079]
[1754518062054,1e-08,3681.3,3681.2,12.48038079]
[1754518062250,1e-08,3681.3,3681.2,7.30928079]
[1754518062424,1e-08,3681.3,3681.2,11.46428079]
[1754518063652,1e-08,3681.3,3681.2,11.93038079]
[1754518064748,1e-08,3681.3,3681.2,11.46428079]
[1754518065417,0.46540001,3681.3,3681.2,7.00650548]
[1754518065622,0.79010001,3681.3,3681.2,7.00650548]
[1754518066233,0.46540001,3681.3,3681.2,7.00650548]
[1754518066954,0.79010001,3681.3,3681.2,0.136]
[1754518067156,0.79010001,3681.3,3681.2,4.154]
[1754518069555,0.79010001,3681.3,3681.1,0.002]
[1754518069556,1.15443199,3681.3,3681.1,0.002]
[1754518069761,1e-08,3681.3,3681.2,4.154]
[1754518069958,1e-08,3681.3,3681.1,0.002]
[1754518070167,0.4654,3681.2,3681.1,4.156]
[1754518070346,0.7901,3681.2,3681.1,4.156]
[1754518070544,3.50660548,3681.2,3681.1,0.002]
[1754518070864,4.27860338,3681.2,3681.1,0.002]
[1754518071760,1.5620979,3681.2,3681.1,0.002]
[1754518073832,0.9261,3681.2,3681.1,0.002]
[1754518075068,3.64260548,3681.2,3681.1,0.002]
[1754518075462,0.9261,3681.2,3681.1,0.002]
[1754518075775,3.64260548,3681.2,3681.1,0.002]
[1754518076173,0.9261,3681.2,3681.1,0.002]
[1754518076340,2.36194645,3681.2,3681.1,0.002]
[1754518078164,2.03724645,3681.2,3681.1,0.002]
[1754518078767,0.136,3681.2,3681.1,2.71857928]
[1754518078946,1e-08,3681.3,3681.1,0.4883]
[1754518079270,1e-08,3681.3,3681.2,3.20280548]
[1754518079441,1e-08,3681.3,3681.2,3.33880548]